bitfinex/quotes_ETHUSD_20250126
["timestamp","ask_amount","ask_price","bid_price","bid_amount"]
[1737888556988,3.03153,3298.7,3298.1,3.03199]
[1737888557788,3.03153,3298.7,3298.2,3.03195]
[1737888557965,5.39,3298.8,3298.2,3.03195]
[1737888558149,9.263531,3298.8,3298.2,3.03195]
[1737888558993,6.232131,3298.8,3298.3,3.0318]
[1737888560795,0.14532218,3298.7,3298.3,3.0318]
[1737888560956,6.232131,3298.8,3298.3,3.0318]
[1737888561156,0.14532218,3298.7,3298.3,3.0318]
[1737888561394,6.232131,3298.8,3298.3,3.0318]
[1737888561596,0.14532218,3298.6,3298.3,3.0318]
[1737888561782,6.232131,3298.8,3298.3,3.0318]
[1737888561987,0.14532218,3298.5,3298.3,3.0318]
[1737888562198,5.39,3298.8,3298.3,3.0318]
[1737888562510,0.14532218,3298.4,3298.3,3.0318]
[1737888562677,5.39,3298.8,3298.3,3.0318]
[1737888562862,0.14532218,3298.4,3298.3,3.0318]
[1737888563056,5.39,3298.8,3298.3,3.0318]
[1737888563257,0.14532218,3298.4,3298.3,3.0318]
[1737888563501,5.39,3298.8,3298.3,3.0318]
[1737888563802,6.232131,3298.8,3298.3,3.0318]
[1737888563962,0.14525922,3298.7,3298.3,3.0318]
[1737888564296,6.232131,3298.8,3298.3,3.0318]
[1737888564501,0.14525922,3298.6,3298.3,3.0318]
[1737888564799,6.232131,3298.8,3298.3,3.0318]
[1737888564800,0.14079255,3298.5,3298.3,3.0318]
[1737888565012,6.232131,3298.8,3298.3,3.0318]
[1737888565013,5.39,3298.8,3298.3,3.0318]
[1737888565218,0.14079255,3298.4,3298.3,3.0318]
[1737888565422,5.39,3298.8,3297.8,0.752]
[1737888565576,0.14079255,3298.4,3297.8,0.752]
[1737888565771,3.03161,3298.6,3298.0,3.03213]
[1737888566028,0.14079255,3298.3,3298.0,3.03213]
[1737888566324,3.03149,3298.7,3298.1,3.03203]
[1737888566478,0.14079255,3298.2,3298.1,3.03203]
[1737888566677,3.03149,3298.7,3298.1,3.03203]
[1737888566916,0.14079255,3298.2,3298.1,3.03203]
[1737888567101,5.39,3298.8,3298.1,3.03203]
[1737888567305,6.232131,3298.8,3298.3,3.03184]
[1737888567479,0.14079255,3298.7,3298.3,3.03184]
[1737888567881,5.39,3298.8,3298.3,3.03184]
[1737888568377,0.14079255,3298.7,3298.3,3.03184]
[1737888568724,8.4214,3298.8,3298.3,3.03184]
[1737888568935,0.14079255,3298.6,3298.3,3.03184]
[1737888569134,8.4214,3298.8,3298.3,3.03184]
[1737888569616,8.4214,3298.8,3298.6,3.03158]
[1737888569617,0.14083105,3298.7,3298.6,3.03158]
[1737888569941,5.39,3298.8,3298.5,3.03162]
[1737888570129,0.14081005,3298.7,3298.5,3.03162]
[1737888570633,0.14081005,3298.6,3298.3,4.418427]
[1737888570836,5.39,3298.8,3298.3,3.81204]
[1737888570991,0.14081005,3298.5,3298.3,3.81204]
[1737888571208,5.39,3298.8,3298.3,3.81204]
[1737888571407,0.14083454,3298.4,3298.3,3.81204]
[1737888571709,5.39,3298.8,3298.3,3.81204]
[1737888572211,0.14083454,3298.7,3298.3,3.81204]
[1737888572406,5.39,3298.8,3298.3,3.03184]
[1737888572602,0.14083454,3298.6,3298.3,3.03184]
[1737888572934,5.39,3298.8,3298.3,3.03184]
[1737888573138,0.14083454,3298.5,3298.3,3.03184]
[1737888573445,0.14083454,3298.4,3298.3,3.03184]
[1737888573745,5.39,3298.8,3298.3,3.03184]
[1737888573952,0.14083454,3298.4,3298.1,3.81221]
[1737888574112,3.03152,3298.7,3298.1,3.81221]
[1737888574313,0.14083454,3298.3,3298.1,3.81221]
[1737888574526,3.03152,3298.7,3298.1,3.81221]
[1737888574728,0.14083454,3298.2,3298.1,3.81221]
[1737888574927,3.03152,3298.7,3298.1,3.81221]
[1737888575128,0.14083454,3298.2,3298.1,3.81221]
[1737888575450,0.14083454,3298.2,3298.1,4.49665]
[1737888575755,3.03152,3298.7,3298.1,4.49665]
[1737888575912,0.14083454,3298.2,3298.1,3.81221]
[1737888576111,3.03152,3298.7,3298.1,3.81221]
[1737888576341,0.14083454,3298.2,3298.1,3.81221]
[1737888576547,3.03152,3298.7,3298.1,3.81221]
[1737888576746,0.14083454,3298.2,3298.1,3.81221]
[1737888576946,3.03152,3298.7,3298.1,3.81221]
[1737888577112,0.14083454,3298.2,3298.1,3.81221]
[1737888577312,3.03152,3298.7,3298.1,3.81221]
[1737888577524,0.14083454,3298.2,3298.1,3.81221]
[1737888578031,3.03152,3298.7,3298.1,3.81221]
[1737888578231,0.14083454,3298.2,3298.1,3.81221]
[1737888578429,3.03152,3298.7,3298.1,3.81221]
[1737888578628,0.14083454,3298.2,3298.1,3.81221]
[1737888578913,3.03152,3298.7,3298.1,3.81221]
[1737888579110,0.14083454,3298.2,3298.1,3.81221]
[1737888579313,3.03152,3298.7,3298.1,3.81221]
[1737888579542,0.14083454,3298.2,3298.1,3.81221]
[1737888579759,3.03152,3298.7,3298.1,3.81221]
[1737888580057,0.842152,3298.6,3298.1,3.81221]
[1737888580351,0.14083454,3298.6,3298.1,3.81221]
[1737888581455,0.14083454,3298.6,3298.2,3.03194]
[1737888581956,5.39,3298.8,3298.3,3.03185]
[1737888582153,0.14082754,3298.5,3298.3,3.03185]
[1737888582453,5.39,3298.8,3298.4,3.82177]
[1737888583121,8.42122,3299.0,3298.4,3.82177]
[1737888583323,9.263342,3299.0,3298.4,3.82177]
[1737888585177,6.232122,3299.0,3298.5,3.03166]
[1737888585384,5.39,3299.0,3298.5,3.03166]
[1737888586080,5.39,3299.0,3298.6,3.03156]
[1737888586280,5.39,3299.0,3298.5,3.03168]
[1737888587377,5.39,3299.0,3298.7,3.03142]
[1737888587578,5.39,3299.4,3298.9,3.03125]
[1737888588242,5.39,3299.4,3299.0,0.79]
[1737888588685,11.42077,3299.5,3299.0,3.8212]
[1737888588981,8.39,3299.5,3299.1,3.0311]
[1737888590280,8.39,3299.5,3299.0,3.82121]
[1737888590451,5.39,3299.5,3299.0,3.82121]
[1737888590870,0.13626869,3299.4,3299.0,3.82121]
[1737888593383,0.13626869,3299.4,3299.1,3.03111]
[1737888595783,0.13626869,3299.4,3299.0,0.79]
[1737888596575,0.13626869,3299.4,3298.9,3.03125]
[1737888601592,0.13626869,3299.4,3299.0,3.03119]
[1737888601958,0.13626869,3299.4,3298.9,0.68527]
[1737888602151,0.13626869,3299.4,3299.1,3.03107]
[1737888603185,0.13626869,3299.4,3298.9,6.0928295]
[1737888603406,0.13626869,3299.4,3299.0,3.0312]
[1737888604287,0.13626869,3299.4,3298.8,0.79]
[1737888604288,0.13626869,3299.4,3298.8,3.82132]
[1737888604593,0.13626869,3299.4,3298.8,0.79]
[1737888604749,0.13626869,3299.4,3298.9,3.0313]
[1737888605494,0.99197256,3299.4,3298.8,0.79]
[1737888605651,3.03094,3299.3,3298.5,0.8158]
[1737888605997,3.0314,3298.8,3298.2,3.84774]
[1737888606358,0.13645762,3298.7,3298.2,3.84774]
[1737888608693,0.13645762,3298.7,3298.3,3.03178]
[1737888608896,3.03125,3299.0,3298.3,0.69098359]
[1737888609097,3.03178,3298.4,3297.7,0.61007104]
[1737888609299,3.0318,3298.4,3297.8,3.03223]
[1737888609599,0.13642615,3298.3,3297.8,3.03223]
[1737888610302,0.13642615,3298.3,3297.9,3.03223]
[1737888610470,3.03169,3298.5,3297.9,3.03223]
[1737888610671,0.13628618,3298.4,3297.9,3.03223]
[1737888612397,0.13628618,3298.4,3297.9,3.6997001]
[1737888613510,0.13628618,3298.4,3298.0,3.0321]
[1737888613714,3.03161,3298.6,3298.0,3.0321]
[1737888613922,0.13575952,3298.3,3298.0,3.0321]
[1737888614080,3.03161,3298.6,3298.0,3.0321]
[1737888614420,0.13575952,3298.5,3298.0,3.0321]
[1737888617076,0.13575952,3298.5,3298.1,3.03199]
[1737888617277,5.39,3298.7,3298.2,0.7616]
[1737888617549,0.13575952,3298.6,3298.2,0.7616]
[1737888621827,0.13575952,3298.6,3298.2,3.79347]
[1737888622125,0.13575952,3298.6,3298.3,3.0318]
[1737888622305,0.13575952,3298.6,3298.4,3.41104]
[1737888622479,3.0,3299.0,3298.4,3.41104]
[1737888622677,0.13572802,3298.9,3298.4,3.0317]
[1737888622881,8.42099,3299.3,3298.7,3.03143]
[1737888623122,0.13098644,3298.8,3298.7,3.03143]
[1737888623320,8.42099,3299.3,3298.7,3.03143]
[1737888623527,0.1310567,3298.8,3298.7,3.03143]
[1737888623680,3.03105,3299.2,3298.7,3.716147]
[1737888623880,0.1310567,3299.1,3298.7,3.03143]
[1737888624333,5.39,3299.3,3298.7,3.03143]
[1737888624677,0.1310567,3299.2,3298.7,3.03143]
[1737888625986,0.1310567,3299.2,3298.7,3.0617423]
[1737888626387,0.1310567,3299.2,3298.9,3.03129]
[1737888626701,0.1310567,3299.2,3299.1,3.03112]
[1737888628835,0.1310567,3299.2,3299.0,0.7841]
[1737888630147,0.1310567,3299.2,3299.1,3.03112]
[1737888630742,8.42058,3299.7,3299.1,3.03112]
[1737888630925,0.12679005,3299.6,3299.2,3.03097]
[1737888631622,0.12679005,3299.6,3299.2,3.41550786]
[1737888631923,0.12679005,3299.6,3299.4,3.03083]
[1737888632132,0.12679005,3299.6,3299.5,3.79976]
[1737888632313,0.15851094,3299.6,3299.5,3.79976]
[1737888633367,3.03014,3300.2,3299.6,3.03065]
[1737888633515,5.39,3300.3,3299.7,3.03056]
[1737888633719,0.15870408,3300.2,3299.7,3.03056]
[1737888633948,0.15870408,3300.2,3299.8,3.03039]
[1737888634259,5.39,3300.3,3299.8,3.03039]
[1737888634764,0.15881643,3300.2,3299.9,3.06067117]
[1737888634932,0.15881643,3300.2,3299.9,3.03037]
[1737888635120,5.39,3300.3,3299.9,3.03037]
[1737888635322,0.15881643,3300.2,3299.9,3.7047481]
[1737888635641,5.39,3300.3,3299.9,3.7047481]
[1737888635841,0.15889717,3300.1,3299.9,3.7047481]
[1737888636047,5.39,3300.3,3300.0,3.79929]
[1737888636250,5.39,3300.3,3300.0,3.82958988]
[1737888636559,3.02909,3301.4,3300.0,3.82958988]
[1737888636560,3.02947,3300.9,3300.3,3.02994]
[1737888637048,3.02947,3300.9,3300.3,3.06023716]
[1737888637221,3.02947,3300.9,3300.3,3.02994]
[1737888638067,3.02947,3300.9,3300.2,3.03011]
[1737888639565,3.02947,3300.9,3300.3,3.03]
[1737888639861,3.02947,3300.9,3300.3,3.6840804]
[1737888640960,3.0293,3301.1,3300.3,3.6840804]
[1737888641133,3.02957,3300.8,3300.3,0.6540804]
[1737888641966,3.02957,3300.8,3300.2,3.03009]
[1737888644075,3.02985,3300.5,3299.7,4.37837614]
[1737888644366,3.02976,3300.6,3300.0,3.03028]
[1737888647887,3.02973,3300.7,3300.0,3.03028]
[1737888648191,5.39,3300.9,3299.7,3.78165]
[1737888648192,3.0,3300.8,3299.7,3.78165]
[1737888648491,3.03038,3300.0,3299.3,3.03092]
[1737888648855,5.39,3300.4,3299.3,3.03092]
[1737888649055,3.03032,3300.0,3299.3,3.03092]
[1737888649459,3.03039,3299.9,3299.3,3.03092]
[1737888650974,0.15897089,3299.8,3299.3,3.03092]
[1737888651174,0.15897089,3299.8,3299.3,3.712232]
[1737888651344,0.15897089,3299.8,3299.4,3.03084]
[1737888651568,3.03031,3300.0,3299.4,3.03084]
[1737888651888,0.15897089,3299.9,3299.4,3.03084]
[1737888652989,0.15897089,3299.9,3299.3,0.681312]
[1737888653149,0.15897089,3299.9,3299.1,3.78219]
[1737888653753,0.15897089,3299.9,3299.3,3.03093]
[1737888654494,5.54897089,3299.9,3299.4,3.03084]
[1737888660224,5.54897089,3299.9,3299.5,3.03073]
[1737888662218,5.54897089,3299.9,3299.1,0.7511]
[1737888662526,5.39,3299.9,3299.8,3.03048]
[1737888662674,5.54350414,3299.9,3299.8,3.03048]
[1737888662874,5.54350414,3299.9,3299.8,3.712727]
[1737888666319,0.15350414,3299.9,3299.8,3.712727]
[1737888666521,8.41997,3300.4,3299.8,3.712727]
[1737888666832,0.1535394,3300.3,3299.8,3.03048]
[1737888667204,3.1835794,3300.3,3299.8,3.03048]
[1737888668505,3.1835794,3300.3,3299.6,0.7615]
[1737888668506,3.03012,3300.2,3299.6,3.03061]
[1737888668707,0.15362054,3300.1,3299.6,3.03061]
[1737888669032,3.03004,3300.3,3299.6,3.03061]
[1737888669193,0.15362054,3300.0,3299.6,3.716543]
[1737888669391,3.03038,3300.0,3299.6,0.685933]
[1737888669720,3.03054,3299.8,3299.2,3.03101]
[1737888670035,0.15364875,3299.7,3299.2,3.03101]
[1737888670693,3.03054,3299.8,3299.2,3.03101]
[1737888671019,0.15362405,3299.7,3299.2,3.717031]
[1737888671337,3.03054,3299.8,3299.2,3.717031]
[1737888671633,0.15362405,3299.7,3299.2,3.717031]
[1737888671833,0.15362405,3299.7,3299.2,6.747981]
[1737888672035,3.03054,3299.8,3299.2,6.747981]
[1737888672424,0.15362405,3299.7,3299.2,6.747981]
[1737888672607,0.15362405,3299.7,3299.3,0.7545981]
[1737888673008,3.03054,3299.8,3299.3,0.7545981]
[1737888673212,0.15362405,3299.6,3299.3,0.7545981]
[1737888673535,0.15362405,3299.5,3299.3,0.7545981]
[1737888673734,3.03054,3299.8,3299.3,0.7545981]
[1737888673935,0.15362405,3299.7,3299.3,3.7855381]
[1737888674110,8.4204,3299.9,3299.3,3.7855381]
[1737888674306,0.15362405,3299.8,3299.3,3.7855381]
[1737888674512,0.15362405,3299.8,3299.4,3.03084]
[1737888675397,0.15362405,3299.8,3299.4,3.71247881]
[1737888676536,0.15362405,3299.8,3299.5,3.03072]
[1737888676841,0.15362405,3299.8,3299.6,3.03061]
[1737888678428,3.03016,3300.2,3299.6,3.03061]
[1737888678615,0.15362405,3299.7,3299.6,3.03061]
[1737888678818,5.39,3300.3,3299.7,3.0305]
[1737888679557,8.42003,3300.3,3299.7,3.0305]
[1737888681148,0.15362405,3300.2,3299.7,3.0305]
[1737888682643,0.15362405,3300.2,3299.9,0.7862]
[1737888682842,0.15362405,3300.2,3299.9,3.81659]
[1737888683002,5.39,3300.3,3299.9,3.81659]
[1737888683198,0.15356764,3300.1,3299.9,0.7862]
[1737888683403,3.03013,3300.2,3299.9,0.7862]
[1737888683642,0.15356764,3300.0,3299.9,0.7862]
[1737888683843,3.03013,3300.2,3299.9,0.7862]
[1737888684004,0.15356764,3300.0,3299.9,0.7862]
[1737888684499,8.42008,3300.3,3299.9,0.7862]
[1737888684702,0.1535782,3300.2,3299.9,0.7862]
[1737888684902,8.42008,3300.3,3299.9,0.7862]
[1737888685148,0.1535782,3300.2,3299.9,0.7862]
[1737888685321,8.42008,3300.3,3299.9,0.7862]
[1737888685520,0.1535782,3300.2,3299.9,0.7862]
[1737888685749,8.42008,3300.3,3299.9,0.7862]
[1737888685950,0.1535782,3300.2,3299.9,0.7862]
[1737888686150,8.42008,3300.3,3299.9,0.7862]
[1737888686356,0.15338154,3300.2,3299.9,0.7862]
[1737888686512,3.03013,3300.2,3299.7,3.8167]
[1737888686851,0.15338154,3300.1,3299.7,3.8167]
[1737888690273,0.15338154,3300.1,3299.7,0.7862]
[1737888692210,1.01073269,3300.1,3298.9,0.7862]
[1737888692411,3.03058,3299.7,3299.2,0.7862]
[1737888692634,6.06124,3299.7,3299.2,0.7862]
[1737888692938,0.15338859,3299.6,3299.2,0.7862]
[1737888693146,0.15338859,3299.6,3299.2,1.167929]
[1737888696580,0.15338859,3299.6,3299.2,4.198949]
[1737888697265,0.15338859,3299.6,3299.2,1.167929]
[1737888697472,0.15338859,3299.6,3299.2,0.7862]
[1737888697672,0.15338859,3299.6,3299.2,3.81723]
[1737888699570,0.15338859,3299.6,3299.3,3.03093]
[1737888699736,3.03043,3299.9,3299.3,3.03093]
[1737888699937,0.15317744,3299.8,3299.3,3.03093]
[1737888700138,0.15317744,3299.8,3299.3,3.715754]
[1737888707490,0.15317744,3299.8,3299.4,3.03084]
[1737888707679,0.15317744,3299.8,3299.5,3.03075]
[1737888707989,5.39,3300.0,3299.7,0.7799]
[1737888708193,5.39,3300.0,3299.5,6.84134]
[1737888708686,5.39,3300.0,3299.6,3.03065]
[1737888709490,5.39,3300.0,3299.8,3.03047]
[1737888710880,3.0,3300.4,3299.9,3.03039]
[1737888711051,6.02994,3300.4,3299.7,3.03056]
[1737888711252,6.02994,3300.4,3299.7,6.06106]
[1737888711686,6.02994,3300.4,3299.8,3.03045]
[1737888712197,5.39,3300.5,3299.9,3.81021]
[1737888712619,5.39,3300.5,3300.1,3.0302]
[1737888712755,3.0,3300.5,3299.9,3.81021]
[1737888713389,8.41983,3300.6,3299.9,3.81021]
[1737888714596,11.44966,3300.6,3299.9,3.81021]
[1737888714891,11.44966,3300.6,3300.0,0.44193353]
[1737888715588,5.39,3300.6,3300.0,0.44193353]
[1737888715796,5.39,3300.6,3300.1,3.03018]
[1737888716698,5.39,3300.6,3300.3,3.02994]
[1737888716997,6.02958,3300.8,3300.3,3.02994]
[1737888717205,6.02958,3300.8,3300.3,3.713942]
[1737888717695,6.02958,3300.8,3300.3,0.684002]
[1737888719094,3.02958,3300.8,3300.3,0.684002]
[1737888720605,3.02966,3300.7,3300.3,0.684002]
[1737888721901,3.02966,3300.7,3300.2,0.7799]
[1737888723104,3.02985,3300.5,3299.8,0.7686]
[1737888723264,3.02985,3300.5,3299.8,3.79907]
[1737888723467,3.02985,3300.5,3299.9,3.03038]
[1737888723763,3.02985,3300.5,3299.8,0.7686]
[1737888723968,3.03008,3300.3,3299.8,1.148523]
[1737888725109,3.03008,3300.3,3299.8,4.179003]
[1737888725770,0.15283115,3300.2,3299.8,4.179003]
[1737888725969,3.03008,3300.3,3299.8,4.179003]
[1737888726170,0.15283115,3300.2,3299.8,4.179003]
[1737888726417,0.15283115,3300.2,3299.9,0.4179003]
[1737888726614,3.03008,3300.3,3299.9,0.4179003]
[1737888726824,0.15283115,3300.2,3299.9,0.4179003]
[1737888727421,0.15283115,3300.1,3299.9,0.4179003]
[1737888727873,3.02985,3300.5,3299.9,0.4179003]
[1737888728073,0.15283115,3300.0,3299.9,0.4179003]
[1737888728270,3.02974,3300.7,3299.9,0.4179003]
[1737888728494,0.15283115,3300.0,3299.8,6.8294]
[1737888728699,8.4199,3300.5,3299.8,6.8294]
[1737888728904,0.15277472,3299.9,3299.8,6.8294]
[1737888729079,5.39,3300.5,3300.2,0.7686]
[1737888733211,5.39,3300.5,3300.2,3.79871]
[1737888733412,5.39,3300.5,3300.2,4.481597]
[1737888733782,5.39,3300.5,3300.2,1.451487]
[1737888734000,5.39,3300.5,3300.2,4.481587]
[1737888734614,8.41974,3300.7,3300.2,4.481587]
[1737888739013,5.39,3300.7,3300.3,3.03001]
[1737888739220,5.39,3300.7,3300.2,4.481587]
[1737888740117,5.39,3300.7,3300.3,0.4481587]
[1737888740786,0.1528946,3300.6,3300.3,0.4481587]
[1737888740985,5.39,3300.8,3300.3,0.4481587]
[1737888741213,0.1528946,3300.7,3300.4,3.02988]
[1737888741443,5.39,3300.8,3300.5,0.8075]
[1737888741612,0.1529087,3300.6,3300.5,0.8075]
[1737888741802,5.39,3300.8,3300.5,0.8075]
[1737888742003,0.1529087,3300.7,3300.5,0.8075]
[1737888742215,5.39,3300.8,3300.5,0.8075]
[1737888742418,0.1529087,3300.7,3300.5,0.8075]
[1737888742624,5.39,3300.8,3300.5,0.8075]
[1737888742793,0.1529087,3300.7,3300.5,0.8075]
[1737888742988,5.39,3300.8,3300.5,1.191238]
[1737888743223,0.1529087,3300.7,3300.5,4.221068]
[1737888743424,5.39,3300.8,3300.5,4.221068]
[1737888743741,0.1529087,3300.7,3300.5,4.221068]
[1737888744038,5.39,3300.8,3300.5,4.221068]
[1737888744239,0.1529087,3300.6,3300.5,4.221068]
[1737888744394,5.39,3300.8,3300.5,4.221068]
[1737888744597,5.39,3301.0,3300.9,3.83697]
[1737888744901,8.41903,3301.4,3300.9,3.83697]
[1737888746129,6.00755142,3301.4,3300.9,3.83697]
[1737888746443,0.61755142,3301.4,3301.0,3.02936]
[1737888746735,4.22904186,3301.5,3301.0,3.02936]
[1737888746927,1.20011186,3301.5,3301.1,3.02924]
[1737888748336,1.20011186,3301.5,3301.2,0.8075]
[1737888748540,0.60518827,3301.6,3301.2,0.8075]
[1737888750258,3.63407827,3301.6,3301.2,0.8075]
[1737888750402,3.02892,3301.5,3301.2,0.8075]
[1737888751599,6.05793,3301.5,3301.2,0.8075]
[1737888751937,3.02892,3301.5,3301.0,0.816]
[1737888753912,3.02901,3301.4,3301.0,0.816]
[1737888755199,3.02892,3301.5,3301.0,0.816]
[1737888755394,3.02915,3301.3,3300.8,0.816]
[1737888755598,3.02915,3301.3,3300.8,1.24277168]
[1737888755810,0.14340087,3301.2,3300.8,1.24277168]
[1737888756031,3.02915,3301.3,3300.8,1.24277168]
[1737888756230,0.14340087,3301.2,3300.8,1.24277168]
[1737888756431,3.02915,3301.3,3300.8,1.24277168]
[1737888756653,3.17267087,3301.2,3300.1,3.84616]
[1737888756812,3.02988,3300.5,3300.1,0.816]
[1737888757148,3.17332376,3300.4,3300.1,0.816]
[1737888761613,0.14339376,3300.4,3300.1,0.816]
[1737888761949,0.14315201,3300.3,3300.1,0.816]
[1737888762254,3.0298,3300.6,3300.1,0.816]
[1737888762548,3.0298,3300.6,3300.1,1.200639]
[1737888762853,0.14315201,3300.5,3300.1,1.200639]
[1737888764580,3.02969,3300.7,3298.8,8.27134]
[1737888764581,3.0,3300.8,3299.8,0.8063]
[1737888764725,3.03048,3299.8,3299.2,0.8063]
[1737888765124,0.14293513,3299.7,3299.2,0.8063]
[1737888765383,3.03048,3299.8,3299.2,0.8063]
[1737888765546,3.03048,3299.8,3299.2,3.83731]
[1737888765728,0.14293513,3299.7,3299.3,3.03093]
[1737888766066,3.03048,3299.8,3299.3,3.03093]
[1737888766560,0.14293513,3299.7,3299.3,3.03093]
[1737888766763,3.03048,3299.8,3299.3,3.03093]
[1737888767119,0.14293513,3299.7,3299.3,3.03093]
[1737888767362,3.03048,3299.8,3299.3,3.03093]
[1737888767560,0.14293513,3299.7,3299.3,3.03093]
[1737888767858,3.03048,3299.8,3299.3,3.03093]
[1737888768261,0.14293513,3299.7,3299.3,3.03093]
[1737888768564,3.03048,3299.8,3299.3,3.03093]
[1737888768767,0.14293513,3299.7,3299.3,3.03093]
[1737888768926,3.03048,3299.8,3299.3,3.03093]
[1737888769264,0.14293513,3299.7,3299.3,3.03093]
[1737888769568,3.03048,3299.8,3299.3,3.03093]
[1737888769735,3.03048,3299.8,3299.2,0.8063]
[1737888769736,3.17358513,3299.7,3299.2,0.8063]
[1737888770649,3.17358513,3299.7,3299.2,3.83733]
[1737888770650,0.14293513,3299.7,3299.2,3.83733]
[1737888770950,3.0305,3299.8,3299.2,3.83733]
[1737888771127,0.14293513,3299.6,3299.2,3.83733]
[1737888771329,3.0305,3299.8,3299.2,3.83733]
[1737888771550,0.14293513,3299.7,3299.2,3.83733]
[1737888772687,0.14293513,3299.7,3299.2,4.524184]
[1737888772984,8.42013,3300.2,3299.6,3.03058]
[1737888773156,8.42013,3300.2,3299.7,0.7561]
[1737888773870,8.42013,3300.2,3299.7,3.78667]
[1737888775007,5.39,3300.2,3299.7,3.78667]
[1737888775286,8.42013,3300.2,3299.7,3.78667]
[1737888776758,5.39,3300.2,3299.7,3.78667]
[1737888777589,5.39,3300.2,3299.8,3.03045]
[1737888777770,5.39,3300.2,3299.8,3.409105]
[1737888777970,5.39,3300.2,3299.9,3.03034]
[1737888778171,8.41991,3300.5,3299.9,3.03034]
[1737888779690,8.41991,3300.5,3299.8,0.378655]
[1737888779857,8.41991,3300.5,3299.7,3.78662]
[1737888780060,3.03008,3300.3,3299.7,3.78662]
[1737888780286,3.03015,3300.2,3299.7,0.7561]
[1737888781272,3.03027,3300.1,3299.5,3.82318]
[1737888783301,3.03027,3300.1,3299.6,3.03066]
[1737888783467,3.03027,3300.1,3299.5,3.82318]
[1737888783661,3.03027,3300.1,3299.5,6.85388]
[1737888783965,3.03027,3300.1,3299.5,3.82318]
[1737888785908,0.13787188,3300.0,3299.5,3.82318]
[1737888786913,0.13787188,3300.0,3299.7,3.03057]
[1737888787205,0.13787188,3299.9,3299.7,3.03057]
[1737888787706,0.13787188,3299.8,3299.7,3.03057]
[1737888788005,3.03008,3300.3,3299.7,3.715945]
[1737888788182,3.03008,3300.3,3299.7,3.03057]
[1737888788382,0.13787188,3300.2,3299.7,3.03057]
[1737888789081,3.16802188,3300.2,3299.5,6.85387]
[1737888789595,3.16802188,3300.2,3299.5,3.82318]
[1737888789803,3.16802188,3300.2,3299.6,3.0306]
[1737888790922,0.13787188,3300.2,3299.6,3.0306]
[1737888791251,3.03024,3300.1,3299.6,3.0306]
[1737888791377,0.13788968,3300.0,3299.6,3.0306]
[1737888792236,0.13788968,3300.0,3299.7,3.03056]
[1737888792590,0.13682301,3299.9,3299.7,3.03056]
[1737888792929,3.03008,3300.3,3299.7,3.03056]
[1737888793073,0.13682301,3299.8,3299.7,3.03056]
[1737888793498,3.03008,3300.3,3299.7,3.03056]
[1737888793697,0.13682301,3299.8,3299.7,3.03056]
[1737888793896,3.03008,3300.3,3299.7,3.754157]
[1737888794101,0.13682301,3299.8,3299.7,3.03056]
[1737888794271,5.39,3300.5,3300.0,3.03023]
[1737888794493,0.13583058,3300.4,3300.0,3.03023]
[1737888795710,0.13583058,3300.4,3299.8,3.82295]
[1737888795913,3.16581058,3300.4,3299.8,3.82295]
[1737888797415,3.03012,3300.2,3299.6,3.03062]
[1737888797823,0.13383104,3300.1,3299.6,3.03062]
[1737888798793,0.13383104,3300.1,3299.7,3.03049]
[1737888799188,0.13383104,3300.0,3299.7,3.03049]
[1737888799394,3.03006,3300.3,3299.7,3.03049]
[1737888799733,0.13383104,3300.2,3299.7,0.687991]
[1737888799936,0.13383104,3300.2,3299.8,3.03046]
[1737888800099,8.4199,3300.5,3299.9,3.78727]
[1737888800288,0.13383104,3300.1,3299.9,3.78727]
[1737888800590,8.4199,3300.5,3299.9,3.78727]
[1737888801121,0.13383104,3300.4,3299.9,3.78727]
[1737888803823,3.16382104,3300.4,3299.9,0.7569]
[1737888805217,0.13383104,3300.4,3299.9,3.78722]
[1737888806327,0.13383104,3300.4,3300.2,3.0301]
[1737888806828,0.13383104,3300.4,3300.3,0.7569]
[1737888808134,0.13383104,3300.4,3300.3,3.78692]
[1737888808991,0.13418404,3300.4,3300.3,3.78692]
[1737888809215,3.0295,3300.9,3300.3,3.78692]
[1737888809557,0.13418404,3300.8,3300.3,3.78692]
[1737888809725,3.16375404,3300.8,3300.3,3.78692]
[1737888809926,3.02966,3300.7,3300.3,0.7569]
[1737888810424,0.13418404,3300.6,3300.3,0.7569]
[1737888811258,0.13418404,3300.6,3300.2,3.03011]
[1737888815164,3.0295,3300.9,3300.2,3.03011]
[1737888815326,0.13418404,3300.5,3300.2,6.06017]
[1737888815525,3.0295,3300.9,3300.2,6.741877]
[1737888815727,0.13418404,3300.4,3300.2,6.06017]
[1737888815965,3.0295,3300.9,3300.2,3.03006]
[1737888816171,5.39,3301.0,3300.2,0.03029807]
[1737888816339,8.4194,3301.0,3300.4,3.02986]
[1737888816537,5.39,3301.0,3300.5,3.02979]
[1737888817141,5.39,3301.0,3300.5,3.78669]
[1737888818598,6.231931,3301.0,3300.5,3.78669]
[1737888819989,9.261381,3301.0,3300.3,3.02996]
[1737888820278,3.0295,3300.9,3300.3,3.02996]
[1737888823280,3.0295,3300.9,3300.4,3.02992]
[1737888823579,6.231931,3301.0,3300.4,3.02992]
[1737888823999,1.2290591,3300.9,3300.4,2.33992]
[1737888825359,1.2290591,3300.9,3300.5,3.02979]
[1737888825970,1.2290591,3300.9,3300.4,2.33992]
[1737888826174,5.39,3301.0,3300.7,0.7971]
[1737888826806,8.4192,3301.2,3300.7,0.7971]
[1737888827107,3.02929,3301.1,3300.7,0.7971]
[1737888828667,5.39,3301.2,3300.7,0.7971]
[1737888829010,0.99316509,3301.1,3300.7,0.7971]
[1737888830895,0.1343088,3301.0,3300.7,0.7971]
[1737888832216,0.1343088,3301.0,3300.7,3.82674]